bitfinex/quotes_SOLUSD_20230703
["timestamp","ask_amount","ask_price","bid_price","bid_amount"]
[1688344190630,77.83,19.427,19.418,55.0]
[1688344194537,77.83,19.427,19.417,55.0]
[1688344199033,77.83,19.427,19.407,56.112]
[1688344199238,77.83,19.427,19.41,21.792]
[1688344199434,20.0,19.426,19.405,10.83719922]
[1688344199632,180.177,19.42,19.401,117.6818]
[1688344199838,20.0,19.419,19.402,30.0]
[1688344200135,180.23,19.414,19.401,95.8808]
[1688344200328,180.23,19.414,19.395,102.445]
[1688344200532,180.23,19.414,19.396,20.0]
[1688344200833,180.23,19.414,19.401,21.802]
[1688344201140,180.23,19.414,19.396,20.0]
[1688344201141,10.06550617,19.413,19.396,20.0]
[1688344201335,21.795,19.408,19.4,21.803]
[1688344202124,21.795,19.408,19.399,21.805]
[1688344202640,21.795,19.408,19.395,56.146]
[1688344202641,21.795,19.408,19.398,21.806]
[1688344203731,21.795,19.408,19.396,21.807]
[1688344205748,21.795,19.408,19.397,55.0]
[1688344205951,21.795,19.408,19.397,76.807]
[1688344206338,21.795,19.408,19.397,55.0]
[1688344206929,21.795,19.408,19.396,55.0]
[1688344207147,21.795,19.408,19.396,76.808]
[1688344207731,21.792,19.411,19.396,132.953]
[1688344208057,77.894,19.411,19.396,143.79019922]
[1688344208240,77.894,19.411,19.396,87.64519922]
[1688344208445,21.792,19.411,19.397,20.0]
[1688344208647,21.792,19.411,19.401,21.802]
[1688344209035,21.792,19.411,19.402,55.0]
[1688344209338,21.792,19.411,19.404,21.798]
[1688344210450,56.093,19.415,19.404,21.798]
[1688344210636,21.792,19.411,19.404,21.798]
[1688344211248,21.788,19.414,19.407,21.796]
[1688344211640,21.788,19.414,19.409,21.793]
[1688344211844,21.785,19.417,19.409,21.793]
[1688344212070,25.26108179,19.426,19.409,21.793]
[1688344212258,21.789,19.414,19.407,21.795]
[1688344217458,56.071,19.422,19.407,21.795]
[1688344217644,56.071,19.422,19.408,55.0]
[1688344217846,21.782,19.419,19.412,21.79]
[1688344223057,56.063,19.425,19.413,55.0]
[1688344223254,21.78,19.421,19.416,21.785]
[1688344223960,21.78,19.421,19.41,90.7383]
[1688344224266,77.853,19.421,19.41,90.7383]
[1688344224459,20.0,19.42,19.41,90.7383]
[1688344224761,21.785,19.417,19.41,90.7383]
[1688344224956,21.785,19.417,19.409,21.793]
[1688344227356,21.785,19.417,19.41,55.0]
[1688344227651,21.785,19.417,19.412,21.79]
[1688344227856,21.785,19.417,19.411,21.791]
[1688344230150,21.784,19.418,19.411,21.791]
[1688344230357,56.063,19.425,19.412,55.0]
[1688344230557,21.78,19.421,19.412,55.0]
[1688344230861,21.78,19.421,19.412,76.789]
[1688344232376,21.779,19.422,19.412,132.888]
[1688344233473,21.779,19.422,19.412,77.888]
[1688344233673,21.779,19.422,19.412,21.789]
[1688344233879,21.779,19.422,19.412,77.888]
[1688344234064,21.779,19.422,19.413,55.0]
[1688344234259,21.779,19.422,19.415,21.786]
[1688344234660,77.849,19.422,19.415,21.787]
[1688344235168,21.779,19.422,19.415,21.787]
[1688344237460,21.777,19.424,19.416,55.0]
[1688344237661,21.774,19.427,19.42,21.781]
[1688344237961,21.773,19.428,19.422,21.778]
[1688344238157,21.771,19.429,19.422,77.848]
[1688344238368,21.77,19.43,19.422,77.848]
[1688344239277,56.034,19.435,19.422,77.848]
[1688344239460,21.771,19.43,19.422,21.778]
[1688344239656,21.771,19.43,19.419,146.7306]
[1688344239657,77.818,19.43,19.42,21.78]
[1688344239876,20.0,19.429,19.417,21.783]
[1688344240062,21.775,19.426,19.416,21.785]
[1688344240267,21.775,19.426,19.411,250.3125]
[1688344240268,21.775,19.426,19.415,21.787]
[1688344240573,21.775,19.426,19.404,10.83719922]
[1688344240574,31.84050617,19.426,19.405,21.797]
[1688344240885,44.0,19.43,19.39,22.2]
[1688344240886,180.191,19.419,19.394,56.151]
[1688344241062,180.254,19.412,19.396,21.808]
[1688344241461,21.796,19.407,19.396,21.808]
[1688344244569,77.909,19.407,19.396,21.808]
[1688344245976,77.909,19.407,19.397,55.0]
[1688344246181,77.909,19.407,19.398,21.806]
[1688344246382,77.909,19.407,19.396,21.807]
[1688344247281,77.909,19.407,19.399,21.804]
[1688344247686,77.909,19.407,19.393,10.83719922]
[1688344247886,77.909,19.407,19.394,55.0]
[1688344249185,77.909,19.407,19.396,21.808]
[1688344251189,77.909,19.407,19.389,56.162]
[1688344251789,21.96,19.4,19.383,21.822]
[1688344251974,180.406,19.395,19.383,21.822]
[1688344255786,77.957,19.395,19.383,21.822]
[1688344256185,77.957,19.395,19.385,21.82]
[1688344257996,21.809,19.395,19.386,55.0]
[1688344258194,21.809,19.395,19.388,21.816]
[1688344259485,21.809,19.395,19.386,76.818]
[1688344259881,21.809,19.395,19.383,21.822]
[1688344262094,21.809,19.395,19.384,55.0]
[1688344262392,21.809,19.395,19.387,21.818]
[1688344264400,55.0,19.402,19.387,21.818]
[1688344264587,21.804,19.4,19.393,21.811]
[1688344265594,77.938,19.4,19.388,95.6559]
[1688344265801,77.938,19.4,19.388,117.4729]
[1688344266013,20.0,19.399,19.388,117.4729]
[1688344266301,21.808,19.396,19.388,117.4729]
[1688344268297,124.251,19.396,19.37,43.92]
[1688344268598,134.31650617,19.396,19.375,95.2855]
[1688344268799,85.06550617,19.395,19.374,67.04319922]
[1688344269096,20.0,19.399,19.37,22.03]
[1688344269097,21.816,19.389,19.377,21.829]
[1688344269496,21.816,19.389,19.377,32.66619922]
[1688344270400,21.816,19.389,19.377,21.829]
[1688344270702,21.816,19.389,19.377,32.66619922]
[1688344271705,21.816,19.389,19.381,21.825]
[1688344272598,21.816,19.389,19.38,21.826]
[1688344272798,21.816,19.389,19.381,55.0]
[1688344272999,124.296,19.389,19.378,21.828]
[1688344274293,124.296,19.389,19.38,21.826]
[1688344274497,124.296,19.389,19.381,55.0]
[1688344275188,124.296,19.389,19.38,55.0]
[1688344276791,124.296,19.389,19.379,55.0]
[1688344277196,124.296,19.389,19.377,21.829]
[1688344279310,124.296,19.389,19.378,76.828]
[1688344279494,124.296,19.389,19.372,102.568]
[1688344280405,124.296,19.389,19.375,21.831]
[1688344280608,124.296,19.389,19.371,96.7484]
[1688344280798,124.296,19.389,19.372,55.0]
[1688344281814,124.296,19.389,19.374,21.832]
[1688344282108,124.296,19.389,19.376,21.83]
[1688344283195,124.296,19.389,19.377,76.829]
[1688344283395,124.296,19.389,19.377,21.829]
[1688344283591,124.296,19.389,19.371,96.7484]
[1688344283592,10.06550617,19.388,19.371,96.7484]
[1688344283796,180.519,19.383,19.371,96.7484]
[1688344284000,180.519,19.383,19.369,21.838]
[1688344284204,180.519,19.383,19.361,10.83719922]
[1688344284205,180.519,19.383,19.368,21.839]
[1688344285619,190.58450617,19.383,19.364,56.236]
[1688344285820,22.2,19.38,19.364,23.13895353]
[1688344286019,180.59,19.376,19.365,1.29488666]
[1688344286317,180.59,19.376,19.367,21.841]
[1688344287412,180.59,19.376,19.36,124.81]
[1688344287717,21.832,19.376,19.366,21.841]
[1688344288610,21.832,19.376,19.364,56.237]
[1688344288611,21.832,19.376,19.369,21.838]
[1688344289316,21.832,19.376,19.363,96.4995]
[1688344289523,21.832,19.376,19.367,21.84]
[1688344290614,21.832,19.376,19.368,55.0]
[1688344290916,21.832,19.376,19.369,21.838]
[1688344291816,21.832,19.376,19.363,102.615]
[1688344292006,78.035,19.376,19.367,21.84]
[1688344292613,78.035,19.376,19.361,56.244]
[1688344292810,78.035,19.376,19.361,57.53915419]
[1688344293017,78.035,19.376,19.365,21.842]
[1688344293398,78.035,19.376,19.359,95.1607]
[1688344293613,78.035,19.376,19.362,1.2950873]
[1688344293803,78.035,19.376,19.36,1.29502041]
[1688344294001,55.0,19.375,19.359,1.29515419]
[1688344294208,180.637,19.371,19.358,1.2952211]
[1688344294416,20.0,19.37,19.357,21.851]
[1688344294603,78.073,19.367,19.356,1.295288]
[1688344294802,78.073,19.367,19.352,56.271]
[1688344294803,78.073,19.367,19.357,21.852]
[1688344295005,78.073,19.367,19.358,1.29535492]
[1688344295231,78.073,19.367,19.358,1.295288]
[1688344295407,21.842,19.367,19.358,21.851]
[1688344295727,21.842,19.367,19.358,78.106]
[1688344295906,21.842,19.367,19.359,1.295288]
[1688344296223,21.842,19.367,19.361,21.847]
[1688344296427,21.842,19.367,19.362,1.2950873]
[1688344296716,21.842,19.367,19.363,21.845]
[1688344298210,21.842,19.367,19.358,56.255]
[1688344298211,21.842,19.367,19.362,21.846]
[1688344298415,21.842,19.367,19.363,56.29502041]
[1688344298620,21.842,19.367,19.363,76.845]
[1688344299215,21.842,19.367,19.362,21.845]
[1688344299424,102.569,19.373,19.362,21.845]
[1688344299621,102.569,19.373,19.363,1.29502041]
[1688344299829,21.839,19.369,19.364,21.843]
[1688344300127,21.839,19.369,19.363,21.845]
[1688344300705,56.208,19.375,19.363,21.845]
[1688344300905,56.2,19.377,19.367,21.84]
[1688344301104,22.04,19.39,19.367,21.84]
[1688344301105,56.197,19.379,19.367,21.84]
[1688344301305,135.7405,19.39,19.366,56.231]
[1688344301306,56.186,19.382,19.371,21.835]
[1688344301514,56.186,19.382,19.372,55.0]
[1688344301719,56.186,19.382,19.371,21.835]
[1688344301905,21.827,19.38,19.375,21.831]
[1688344302308,21.827,19.38,19.372,53.5]
[1688344302924,21.827,19.38,19.373,21.834]
[1688344303227,78.018,19.38,19.371,21.836]
[1688344306511,78.018,19.38,19.364,56.235]
[1688344306706,21.832,19.375,19.366,21.842]
[1688344307514,78.038,19.375,19.366,21.842]
[1688344308729,78.038,19.375,19.365,21.843]
[1688344309128,78.038,19.375,19.364,21.844]
[1688344309431,78.038,19.375,19.363,21.845]
[1688344312615,21.832,19.375,19.363,21.845]
[1688344312817,78.038,19.375,19.363,21.845]
[1688344316614,78.038,19.375,19.36,90.8192]
[1688344316816,88.10350617,19.375,19.359,21.85]
[1688344317226,78.038,19.375,19.359,21.85]
[1688344317422,180.643,19.37,19.359,21.85]
[1688344317625,21.842,19.366,19.359,21.85]
[1688344318430,21.842,19.366,19.358,21.851]
[1688344318731,21.842,19.366,19.354,198.6209]
[1688344318732,21.842,19.366,19.357,21.852]
[1688344318940,21.842,19.366,19.358,55.0]
[1688344319234,21.842,19.366,19.358,76.851]
[1688344320223,21.842,19.366,19.356,21.853]
[1688344322229,20.0,19.39,19.356,21.853]
[1688344322230,102.559,19.375,19.36,22.1]
[1688344322433,56.204,19.376,19.363,21.845]
[1688344322636,21.835,19.372,19.363,21.845]
[1688344322829,56.204,19.376,19.366,21.841]
[1688344323046,21.834,19.373,19.366,21.841]
[1688344323551,21.834,19.373,19.361,148.6779]
[1688344323841,21.834,19.373,19.36,22.1]
[1688344324043,21.834,19.373,19.358,158.894]
[1688344324833,21.834,19.373,19.361,21.847]
[1688344327149,21.834,19.373,19.355,102.658]
[1688344327330,20.0,19.372,19.358,21.851]
[1688344327532,78.067,19.368,19.358,21.851]
[1688344328043,78.067,19.368,19.357,21.852]
[1688344328241,78.067,19.368,19.352,56.273]
[1688344329243,78.067,19.368,19.355,21.853]
[1688344330041,88.13250617,19.368,19.354,21.855]
[1688344330248,185.19350617,19.368,19.354,21.855]
[1688344331341,10.06550617,19.367,19.353,21.856]
[1688344331547,78.087,19.363,19.353,21.856]
[1688344331845,78.087,19.363,19.349,56.279]
[1688344332042,78.087,19.363,19.352,21.858]
[1688344332446,78.087,19.363,19.351,21.859]
[1688344339461,78.087,19.363,19.341,99.0459]
[1688344339462,20.0,19.362,19.341,99.0459]
[1688344339762,78.116,19.356,19.346,21.864]
[1688344340756,78.116,19.356,19.341,99.0459]
[1688344342156,78.116,19.356,19.346,21.864]
[1688344342466,78.116,19.356,19.345,21.865]
[1688344344157,21.854,19.356,19.345,21.865]
[1688344344362,21.85,19.36,19.349,78.142]
[1688344344547,21.85,19.36,19.35,55.0]
[1688344344747,21.85,19.36,19.353,21.857]
[1688344346669,21.85,19.36,19.343,10.83719922]
[1688344346670,21.85,19.36,19.351,21.858]
[1688344346973,21.85,19.36,19.346,102.706]
[1688344347153,21.85,19.36,19.35,21.86]
[1688344349157,21.85,19.36,19.35,78.139]
[1688344350552,81.64647766,19.367,19.35,78.139]
[1688344350867,21.845,19.364,19.355,78.116]
[1688344352471,21.845,19.364,19.355,21.853]
[1688344353968,21.843,19.365,19.355,21.853]
[1688344354471,44.24,19.38,19.355,21.853]
[1688344354472,56.229,19.373,19.356,55.0]
[1688344354659,158.775,19.374,19.356,55.0]
[1688344354660,21.839,19.369,19.363,21.845]
[1688344356879,21.839,19.369,19.355,56.262]
[1688344357179,31.90450617,19.369,19.355,56.262]
[1688344358060,31.90450617,19.369,19.358,21.85]
[1688344361064,21.839,19.369,19.358,21.85]
[1688344366961,21.839,19.369,19.357,21.852]
[1688344367161,21.839,19.369,19.356,21.853]
[1688344368586,21.839,19.369,19.355,21.854]
[1688344370469,31.90450617,19.369,19.355,21.854]
[1688344373975,21.839,19.369,19.355,21.854]
[1688344379391,21.839,19.369,19.349,10.83719922]
[1688344379392,20.0,19.368,19.34,22.47]
[1688344379599,202.956,19.36,19.342,56.299]
[1688344379775,202.956,19.36,19.344,21.866]
[1688344379974,213.02150617,19.36,19.344,21.866]
[1688344380879,243.02150617,19.36,19.345,55.0]
[1688344381080,243.02150617,19.36,19.343,21.867]
[1688344381800,55.0,19.359,19.331,99.4887]
[1688344381982,180.82,19.351,19.336,21.875]
[1688344382180,78.136,19.351,19.336,78.194]
[1688344384188,78.136,19.351,19.34,22.26]
[1688344384378,78.136,19.351,19.343,21.868]
[1688344385185,78.136,19.351,19.341,21.869]
[1688344385698,78.136,19.351,19.344,21.866]
[1688344385699,21.859,19.351,19.344,21.866]
[1688344388189,102.646,19.358,19.344,21.866]
[1688344388386,21.854,19.356,19.348,21.861]
[1688344389999,30.0,19.36,19.349,55.0]
[1688344390194,66.30450617,19.364,19.353,21.856]
[1688344390195,21.848,19.361,19.353,21.856]
[1688344394788,21.848,19.361,19.341,92.7947]
[1688344394996,21.848,19.361,19.342,20.0]
[1688344395200,21.846,19.363,19.352,180.806]
[1688344398382,21.846,19.363,19.352,78.13]
[1688344400890,21.846,19.363,19.352,73.13]
[1688344401090,21.846,19.363,19.356,21.853]
[1688344407213,21.845,19.364,19.356,21.853]
[1688344407916,21.845,19.364,19.357,55.0]
[1688344408097,21.845,19.364,19.358,21.85]
[1688344408417,10.06550617,19.375,19.351,91.0956]
[1688344408717,21.845,19.364,19.357,21.852]
[1688344410896,21.841,19.368,19.357,21.852]
[1688344411102,21.839,19.369,19.361,21.847]
[1688344411313,21.839,19.369,19.354,56.266]
[1688344411511,27.00175377,19.368,19.351,91.0956]
[1688344411711,78.086,19.363,19.352,21.857]
[1688344412006,78.086,19.363,19.351,112.9546]
[1688344412194,78.086,19.363,19.351,91.0956]
[1688344412715,78.086,19.363,19.34,111.34]
[1688344412716,22.26,19.36,19.343,21.867]
[1688344413012,22.26,19.36,19.34,78.606]
[1688344413013,180.779,19.355,19.338,193.1678]
[1688344413198,180.779,19.355,19.342,21.869]
[1688344414603,180.779,19.355,19.343,55.0]
[1688344414805,56.311,19.358,19.343,21.868]
[1688344415127,180.779,19.355,19.343,21.868]
[1688344415609,190.84450617,19.355,19.342,21.869]
[1688344415811,190.84450617,19.355,19.338,90.4188]
[1688344416022,10.06550617,19.354,19.338,90.4188]
[1688344416223,78.142,19.35,19.34,21.871]
[1688344420004,21.861,19.35,19.34,21.871]
[1688344421108,78.14,19.35,19.34,21.871]
[1688344421824,78.14,19.35,19.339,21.872]
[1688344423823,21.861,19.35,19.339,78.183]
[1688344424120,21.861,19.35,19.339,21.872]
[1688344424330,56.267,19.354,19.339,78.183]
[1688344424621,21.86,19.35,19.343,21.868]
[1688344426128,21.86,19.35,19.342,21.869]
[1688344427821,78.139,19.35,19.342,21.869]
[1688344429526,21.86,19.35,19.342,21.869]
[1688344430528,21.86,19.351,19.342,78.171]
[1688344430823,21.86,19.35,19.342,78.171]
[1688344436723,21.86,19.35,19.342,21.869]
[1688344441721,78.139,19.35,19.335,56.32]
[1688344441912,78.139,19.35,19.336,30.0]
[1688344442540,78.139,19.35,19.335,56.32]
[1688344442930,78.139,19.35,19.337,21.874]
[1688344443736,78.139,19.35,19.332,262.06879922]
[1688344443737,110.46450617,19.35,19.334,21.878]
[1688344444241,78.161,19.345,19.334,21.878]
[1688344444426,21.866,19.345,19.334,21.878]
[1688344445742,66.347506,19.346,19.334,78.203]
[1688344446039,21.861,19.349,19.334,180.975]
[1688344446620,21.858,19.352,19.334,180.975]
[1688344446937,78.132,19.353,19.335,85.83719922]
[1688344447126,21.857,19.353,19.342,78.17]
[1688344451151,78.127,19.353,19.342,21.869]
[1688344451819,88.19250617,19.353,19.342,21.869]
[1688344452426,31.92250617,19.353,19.342,21.869]
[1688344452631,26.473054,19.354,19.342,21.869]
[1688344453430,48.329054,19.354,19.342,21.869]
[1688344457450,56.24,19.364,19.342,21.869]
[1688344457653,21.846,19.363,19.343,55.0]
[1688344457834,56.24,19.36,19.352,78.127]
[1688344458033,56.24,19.36,19.352,180.803]
[1688344458350,21.844,19.364,19.352,180.803]
[1688344458530,27.01638819,19.365,19.352,180.803]
[1688344458726,27.01638819,19.365,19.356,78.112]
[1688344458931,21.841,19.367,19.356,78.112]
[1688344459544,78.07,19.367,19.356,21.853]
[1688344460955,78.07,19.367,19.355,21.854]
[1688344461939,78.07,19.367,19.354,21.855]
[1688344463641,78.07,19.367,19.353,117.4605]
[1688344464655,88.13550617,19.367,19.345,56.292]
[1688344464852,88.13550617,19.367,19.346,113.9346]
[1688344464853,10.06550617,19.366,19.346,113.9346]
[1688344465157,180.733,19.36,19.346,113.9346]
[1688344465939,180.733,19.36,19.347,55.0]
[1688344466151,180.733,19.36,19.348,21.862]
[1688344466350,180.733,19.36,19.349,55.0]
[1688344467854,180.733,19.36,19.349,76.861]
[1688344469435,180.733,19.36,19.349,55.0]
[1688344470946,180.733,19.36,19.346,20.0]
[1688344471148,180.733,19.36,19.327,3.0]
[1688344471356,180.733,19.36,19.345,21.866]
[1688344471357,20.0,19.359,19.345,21.866]
[1688344471668,78.12,19.355,19.345,21.865]
[1688344474264,21.855,19.355,19.345,21.865]
[1688344474557,21.853,19.356,19.349,21.861]
[1688344474745,21.853,19.356,19.348,21.862]
[1688344477450,21.852,19.357,19.348,78.146]
[1688344477767,21.851,19.359,19.351,21.858]
[1688344478764,21.851,19.359,19.351,78.134]
[1688344480262,21.851,19.359,19.35,21.86]
[1688344480851,21.851,19.359,19.348,97.4995]
[1688344482276,21.851,19.359,19.348,119.3615]
[1688344483959,21.851,19.359,19.346,21.863]
[1688344485066,180.79,19.354,19.344,21.866]
[1688344486056,21.856,19.354,19.344,21.866]
[1688344489360,20.0,19.353,19.33,22.47]
[1688344489551,20.0,19.353,19.332,21.88]
[1688344489552,180.862,19.347,19.332,21.88]
[1688344489754,180.862,19.347,19.331,30.0]
[1688344489957,190.92750617,19.347,19.331,30.0]
[1688344490161,190.92750617,19.347,19.328,146.7985]
[1688344490477,55.0,19.346,19.328,146.7985]
[1688344490659,78.177,19.341,19.331,21.881]
[1688344492565,78.177,19.341,19.328,90.4575]
[1688344492972,78.177,19.341,19.33,21.882]
[1688344493764,78.177,19.341,19.329,21.884]
[1688344494954,78.177,19.341,19.33,55.0]
[1688344495156,78.177,19.341,19.332,21.879]
[1688344497372,78.177,19.341,19.325,56.349]
[1688344497678,78.177,19.341,19.33,21.882]
[1688344500571,21.871,19.341,19.33,21.882]
[1688344500776,21.871,19.341,19.334,21.878]
[1688344500977,21.87,19.342,19.334,21.878]
[1688344501479,21.87,19.342,19.335,55.0]
[1688344501660,56.287,19.348,19.337,21.875]
[1688344502261,21.864,19.346,19.337,78.191]
[1688344502461,21.864,19.346,19.338,55.0]
[1688344502770,21.864,19.346,19.34,21.871]
[1688344502963,21.864,19.346,19.338,21.873]
[1688344503164,21.864,19.346,19.337,21.874]
[1688344503374,21.864,19.346,19.33,22.26]
[1688344503577,21.864,19.346,19.333,21.878]
[1688344505080,31.92950617,19.346,19.332,21.88]
[1688344505284,10.06550617,19.345,19.332,21.88]
[1688344505583,78.174,19.342,19.332,21.88]
[1688344506080,78.174,19.342,19.325,102.818]
[1688344506267,78.174,19.342,19.326,106.347]
[1688344506468,78.174,19.342,19.33,21.882]
[1688344511371,78.174,19.342,19.32,111.34]
[1688344511579,21.868,19.344,19.33,146.935]
[1688344512084,21.866,19.345,19.335,78.199]
[1688344512470,21.866,19.345,19.336,55.0]
[1688344512677,21.866,19.345,19.338,21.873]
[1688344514573,21.866,19.345,19.337,21.875]
[1688344514789,21.866,19.345,19.338,21.873]
[1688344514973,21.866,19.345,19.337,21.874]
[1688344515174,21.866,19.345,19.338,76.873]
[1688344515572,158.962,19.351,19.338,76.873]
[1688344515776,21.856,19.354,19.34,22.26]
[1688344515971,21.856,19.354,19.344,78.159]
[1688344516182,21.856,19.354,19.347,21.863]
[1688344516590,21.856,19.354,19.348,55.0]
[1688344516798,21.856,19.354,19.349,21.86]
[1688344517985,21.856,19.354,19.348,21.861]
[1688344518294,78.123,19.354,19.343,21.868]
[1688344518493,78.123,19.354,19.342,21.869]
[1688344520183,78.123,19.354,19.34,21.871]
[1688344520502,88.18850617,19.354,19.34,21.871]
[1688344521991,180.847,19.348,19.337,21.874]
[1688344522695,78.149,19.348,19.337,21.874]
[1688344524582,78.149,19.348,19.33,33.13719922]
[1688344524782,78.149,19.348,19.323,21.89]
[1688344524783,180.972,19.335,19.323,21.89]
[1688344525093,180.972,19.335,19.321,21.893]
[1688344525289,180.972,19.335,19.32,21.894]
[1688344526507,27.04809887,19.334,19.32,21.894]
[1688344526707,78.22,19.33,19.32,21.894]
[1688344527199,21.883,19.33,19.32,21.894]
[1688344527387,78.22,19.33,19.32,21.894]
[1688344528089,78.22,19.33,19.321,55.0]
[1688344528396,78.22,19.33,19.321,76.893]
[1688344528986,78.22,19.33,19.321,55.0]
[1688344529386,78.22,19.33,19.321,76.893]
[1688344529687,21.883,19.33,19.321,76.893]
[1688344530702,78.22,19.33,19.321,76.893]
[1688344532106,78.22,19.33,19.319,114.1732]
[1688344532290,78.22,19.33,19.304,402.3]
[1688344532291,20.0,19.329,19.314,21.9]
[1688344532488,78.242,19.325,19.314,21.9]
[1688344533089,21.887,19.326,19.314,124.778]
[1688344533304,22.35,19.34,19.314,124.778]
[1688344533305,102.816,19.331,19.314,21.9]
[1688344533605,21.888,19.325,19.314,21.9]
[1688344533799,21.887,19.327,19.317,21.897]
[1688344534620,21.887,19.327,19.318,55.0]
[1688344534902,21.885,19.328,19.32,21.893]
[1688344535103,21.885,19.328,19.313,102.88]
[1688344535104,21.897,19.334,19.31,66.507]
[1688344535293,21.886,19.327,19.313,102.881]
[1688344535492,21.886,19.327,19.318,21.896]
[1688344535805,21.886,19.327,19.316,21.897]
[1688344536489,21.886,19.327,19.311,148.6692]
[1688344536888,21.886,19.327,19.314,78.283]
[1688344537116,21.886,19.327,19.318,21.895]
[1688344537486,21.886,19.327,19.318,78.267]
[1688344538396,78.232,19.327,19.311,92.2792]
[1688344538592,78.232,19.327,19.318,21.396]
[1688344539312,78.232,19.327,19.318,77.768]
[1688344539313,21.886,19.327,19.318,77.768]
[1688344539806,21.886,19.327,19.318,21.396]
[1688344540614,21.886,19.327,19.317,21.897]
[1688344541298,21.886,19.327,19.31,56.395]
[1688344541608,181.09,19.322,19.312,21.903]
[1688344541789,181.09,19.322,19.311,21.904]
[1688344541989,181.09,19.322,19.307,56.402]
[1688344541990,181.09,19.322,19.31,21.905]
[1688344542604,21.892,19.322,19.31,21.905]
[1688344543006,92.2557,19.329,19.31,21.905]
[1688344543310,21.89,19.324,19.31,44.255]
[1688344543500,21.89,19.324,19.311,150.4732]
[1688344543807,21.89,19.324,19.314,21.9]
[1688344544716,78.244,19.324,19.314,21.9]
[1688344544894,78.244,19.324,19.313,21.902]
[1688344545210,78.244,19.324,19.311,95.4732]
[1688344545398,78.244,19.324,19.308,159.308]
[1688344545601,78.244,19.324,19.309,55.0]
[1688344546113,78.244,19.324,19.313,21.902]
[1688344548508,78.244,19.324,19.312,21.902]
[1688344549194,78.244,19.324,19.311,21.904]